bitfinex-derivatives/quotes_ETHF0:USTF0_20251107
["timestamp","ask_amount","ask_price","bid_price","bid_amount"]
[1762542141110,0.1366,3424.2,3423.4,0.23073659]
[1762542141111,0.1366,3423.6,3423.4,0.23073659]
[1762542141408,0.1366,3423.6,3423.4,0.70425659]
[1762542141606,0.2256,3423.5,3423.4,0.23307048]
[1762542141815,0.2256,3423.5,3423.4,0.00233389]
[1762542142005,0.13985233,3423.6,3423.4,0.47585389]
[1762542142200,0.2256,3423.5,3423.2,0.00437522]
[1762542142408,0.2256,3423.3,3423.2,0.00437522]
[1762542143312,0.2256,3423.3,3423.2,0.0075002]
[1762542144012,0.13985233,3423.6,3423.2,0.0075002]
[1762542144817,0.2256,3423.3,3422.0,0.23109715]
[1762542145112,0.13985233,3423.6,3422.8,0.4736]
[1762542145113,0.2256,3422.9,3422.8,0.4736]
[1762542145310,0.2256,3422.3,3420.4,0.76455068]
[1762542145508,0.2256,3422.3,3422.1,0.47369]
[1762542145716,0.1366,3422.4,3422.3,0.47367]
[1762542145905,0.1366,3422.4,3422.3,0.47711306]
[1762542146105,0.00438167,3422.7,3422.6,0.47363]
[1762542146918,0.13985233,3423.6,3423.5,0.47351]
[1762542148017,0.38135233,3423.6,3423.5,0.47351]
[1762542148613,0.13985233,3423.6,3423.5,0.47351]
[1762542150121,0.00325233,3423.6,3423.5,0.47351]
[1762542150321,0.14125233,3423.6,3423.5,0.47351]
[1762542153122,0.38275233,3423.6,3423.5,0.47351]
[1762542154017,0.14125233,3423.6,3423.5,0.47351]
[1762542158623,0.00325233,3423.6,3423.5,0.47351]
[1762542163022,0.00438167,3423.9,3423.8,0.47347]
[1762542163229,0.1366,3424.2,3424.1,0.47342]
[1762542163423,0.09670353,3424.7,3424.4,0.47338]
[1762542163731,0.3737,3424.5,3424.4,0.47338]
[1762542163924,0.2357,3424.3,3423.1,1.01376057]
[1762542164226,0.136,3423.5,3423.4,0.00438167]
[1762542164427,0.136,3423.5,3423.4,0.47790167]
[1762542165724,0.00438167,3423.8,3423.4,0.47790167]
[1762542165725,0.00438167,3423.8,3423.7,0.47348]
[1762542168428,0.33720064,3423.8,3423.7,0.47348]
[1762542168627,0.10150064,3423.8,3423.7,0.47348]
[1762542168830,0.33720064,3423.8,3423.7,0.47348]
[1762542171831,0.10150064,3423.8,3423.7,0.47348]
[1762542172533,0.33720064,3423.8,3423.7,0.47348]
[1762542172733,0.10150064,3423.8,3423.7,0.47348]
[1762542173340,0.00438167,3423.8,3423.7,0.47348]
[1762542173538,0.136,3424.0,3423.9,0.47345]
[1762542173840,0.00242794,3424.3,3424.2,0.47341]
[1762542174228,0.1366,3424.8,3424.7,0.47334]
[1762542174933,0.136,3425.5,3425.4,0.47324]
[1762542175138,0.12796437,3425.5,3425.4,0.47586177]
[1762542175535,0.136,3426.0,3425.9,0.47317]
[1762542176035,0.3717,3426.0,3425.9,0.47317]
[1762542176436,0.37529428,3426.0,3425.9,0.47317]
[1762542176631,0.13959428,3426.0,3425.9,0.47317]
[1762542181748,0.00359428,3426.0,3425.9,0.47317]
[1762542181946,0.37859428,3426.0,3425.9,0.47317]
[1762542182247,0.2308,3425.7,3425.6,0.00438167]
[1762542182456,0.2308,3425.7,3425.6,0.47758167]
[1762542184054,0.84823,3425.5,3425.4,0.00262177]
[1762542184251,0.375,3424.5,3423.7,0.47348]
[1762542184454,0.375,3424.5,3422.9,2.58288385]
[1762542184455,0.1442,3423.6,3423.3,1.01376057]
[1762542184649,0.1442,3423.6,3423.5,0.4735]
[1762542184850,0.1442,3423.0,3422.9,1.48735057]
[1762542185055,0.1442,3423.0,3422.9,0.47359]
[1762542185256,0.1472754,3423.0,3422.9,0.47607801]
[1762542187461,0.3780754,3423.0,3422.9,0.47607801]
[1762542189965,0.1472754,3423.0,3422.9,0.47607801]
[1762542190567,0.00438167,3423.3,3423.2,0.47354]
[1762542191765,0.00780038,3423.3,3423.2,0.47354]
[1762542193068,0.1442,3423.0,3422.9,0.00248801]
[1762542193268,0.375,3423.0,3422.9,0.00248801]
[1762542196066,0.2308,3422.7,3422.6,0.00438167]
[1762542196372,0.2308,3422.3,3422.2,0.47368]
[1762542196562,0.2308,3422.2,3421.6,1.01376057]
[1762542196763,0.1442,3421.8,3421.7,0.47375]
[1762542197163,0.375,3421.8,3421.7,0.47619565]
[1762542197359,0.1442,3421.8,3421.7,0.47619565]
[1762542199172,0.1442,3422.4,3422.3,0.47367]
[1762542200273,0.1442,3423.0,3422.9,0.47358]
[1762542200871,0.00780038,3423.3,3423.2,0.47354]
[1762542201569,0.23860038,3423.3,3423.2,0.47354]
[1762542201876,0.2308,3423.2,3423.1,0.47356]
[1762542202262,0.00780038,3423.3,3423.2,0.47354]
[1762542203571,0.1442,3424.2,3424.1,0.47342]
[1762542204672,0.00375809,3424.2,3424.1,0.47702535]
[1762542205174,0.00438167,3424.5,3424.1,0.47702535]
[1762542205175,0.00438167,3424.5,3424.4,0.47338]
[1762542206277,0.00718394,3424.5,3424.4,0.47338]
[1762542207274,0.1442,3425.4,3424.1,0.00360535]
[1762542208080,0.3917,3425.4,3425.3,0.47325]
[1762542208278,0.39375638,3425.4,3425.3,0.47325]
[1762542209073,0.00205638,3425.4,3425.3,0.47325]
[1762542209478,9.4e-07,3425.7,3425.6,0.47321]
[1762542209680,0.1442,3426.6,3426.5,0.47309]
[1762542210378,0.2475,3426.5,3425.2,1.24130104]
[1762542210677,0.2475,3426.4,3426.3,0.47311]
[1762542210878,0.00280457,3426.5,3426.4,0.4731]
[1762542211377,0.25030457,3426.5,3426.4,0.4731]
[1762542211772,0.25030457,3426.5,3425.5,0.00438167]
[1762542212078,0.25030457,3426.5,3426.4,0.4731]
[1762542212972,0.00280457,3426.5,3426.4,0.4731]
[1762542214377,9.021,3427.9,3427.1,0.47301]
[1762542214571,0.1378,3429.0,3427.1,0.47301]
[1762542214973,0.47287,3428.1,3427.7,0.47292]
[1762542215177,0.1378,3429.0,3427.7,0.47292]
[1762542215380,0.14083578,3427.8,3427.7,0.47563802]
[1762542215575,0.38833578,3427.8,3427.7,0.00271802]
[1762542216187,0.00303578,3427.8,3427.7,0.00271802]
[1762542217078,0.47276,3428.9,3428.3,0.47284]
[1762542217282,0.1378,3429.0,3428.3,0.47284]
[1762542218180,0.14073231,3428.4,3428.3,0.47284]
[1762542218776,0.14073231,3428.4,3427.7,0.00271802]
[1762542218981,0.1378,3427.8,3427.7,0.47563802]
[1762542219282,0.1378,3427.8,3427.7,0.00271802]
[1762542219488,0.85821,3427.8,3427.7,0.00271802]
[1762542219783,0.3853,3427.8,3427.7,0.00271802]
[1762542220091,0.85821,3427.8,3427.7,0.00271802]
[1762542220785,0.3853,3427.8,3427.7,0.00271802]
[1762542221180,0.85821,3427.8,3427.7,0.00271802]
[1762542221582,0.3853,3427.8,3427.7,0.47563802]
[1762542221782,0.1378,3427.8,3427.7,0.47563802]
[1762542223390,0.14073231,3428.4,3428.3,0.47284]
[1762542225190,0.00293231,3428.4,3428.3,0.47284]
[1762542225886,0.13873231,3428.4,3428.3,0.47284]
[1762542227082,0.36793231,3428.4,3427.7,0.00271802]
[1762542227289,0.1358,3427.8,3427.7,0.47563802]
[1762542227493,0.13873231,3428.4,3428.3,0.47284]
[1762542227895,0.1358,3427.8,3427.7,0.00271802]
[1762542228093,0.1358,3427.8,3427.7,0.47563802]
[1762542233202,0.13873231,3428.4,3428.3,0.47284]
[1762542233597,0.61156231,3428.4,3428.3,0.47284]
[1762542233804,0.13873231,3428.4,3428.3,0.47284]
[1762542234193,0.36793231,3428.4,3428.3,0.47284]
[1762542234796,0.00293231,3428.4,3428.3,0.47284]
[1762542236999,0.1378,3429.0,3428.9,0.47276]
[1762542237897,0.14054358,3429.0,3428.9,0.47276]
[1762542239102,0.61328358,3429.0,3428.7,0.47277]
[1762542239304,0.2292,3428.7,3427.7,1.01647859]
[1762542239503,0.47276,3428.9,3428.6,0.4728]
[1762542239698,0.09658667,3428.9,3428.5,0.4728]
[1762542239898,0.4728,3428.6,3428.4,0.47283]
[1762542240110,0.2409,3428.6,3427.7,1.01647859]
[1762542240310,0.7137,3428.6,3428.4,0.47282]
[1762542240708,0.148,3428.4,3427.7,1.01647859]
[1762542240913,0.148,3427.8,3427.7,0.47563802]
[1762542241114,0.148,3428.4,3428.3,0.47284]
[1762542241918,0.148,3427.8,3427.7,0.00271802]
[1762542242116,0.148,3427.8,3427.7,0.47563802]
[1762542242815,0.86181,3427.8,3427.7,0.00271802]
[1762542243206,0.3889,3427.8,3427.7,0.47563802]
[1762542243408,0.148,3427.8,3427.7,0.47563802]
[1762542243717,0.86181,3427.8,3427.7,0.00271802]
[1762542243915,0.95861591,3427.8,3427.7,0.47563802]
[1762542244111,0.48570591,3427.8,3427.7,0.47563802]
[1762542244511,0.95861591,3427.8,3427.7,0.00271802]
[1762542244815,0.48570591,3427.8,3427.7,0.47563802]
[1762542245017,0.24480591,3427.8,3427.7,0.47563802]
[1762542245516,0.48570591,3427.8,3427.7,0.47563802]
[1762542245920,0.148,3428.4,3427.7,14.85087859]
[1762542246213,0.09690727,3428.9,3428.8,0.47277]
[1762542246519,0.148,3428.4,3428.3,1.5040101]
[1762542246715,0.2409,3428.2,3427.9,1.0311701]
[1762542246922,0.2409,3428.0,3427.9,1.5040701]
[1762542247112,0.2409,3428.0,3427.9,0.4729]
[1762542247513,0.2409,3428.0,3427.9,1.0311701]
[1762542247713,0.2409,3427.9,3427.8,1.5040801]
[1762542248009,0.3889,3428.4,3427.8,1.0311701]
[1762542248215,0.2409,3428.1,3428.0,1.24689581]
[1762542248617,0.2409,3427.9,3427.8,0.77401581]
[1762542249015,0.3889,3427.8,3427.7,0.47562802]
[1762542249220,0.148,3427.8,3427.7,1.24964383]
[1762542249622,0.148,3427.8,3427.7,0.47562802]
[1762542250115,0.3889,3427.8,3427.7,0.47562802]
[1762542250516,0.3889,3427.8,3427.7,0.77673383]
[1762542250715,0.86181,3427.8,3427.7,0.00271802]
[1762542251123,0.86181,3427.8,3427.7,0.47563802]
[1762542251318,0.86181,3427.8,3427.7,0.00271802]
[1762542251620,0.71385,3427.5,3427.4,0.00438167]
[1762542252723,0.71385,3427.5,3427.4,0.00696494]
[1762542253118,0.148,3427.2,3426.8,0.77401581]
[1762542253322,0.2409,3426.9,3426.7,0.77401581]
[1762542253517,0.71396,3426.7,3426.6,0.47307]
[1762542254115,0.71396,3426.7,3426.6,0.47536066]
[1762542254325,0.2409,3426.7,3426.6,0.47536066]
[1762542254726,0.0043593,3427.0,3426.9,0.47303]
[1762542254925,0.2452593,3427.0,3426.9,0.47303]
[1762542255328,0.2409,3426.7,3426.6,0.00229066]
[1762542255524,0.2409,3426.7,3426.6,0.47537066]
[1762542255924,0.2452593,3427.0,3426.9,0.47303]
[1762542256225,0.7182793,3427.0,3426.7,0.47305]
[1762542256423,0.2409,3426.8,3426.7,0.47305]
[1762542257126,0.71395,3426.8,3426.7,0.47305]
[1762542257428,0.71395,3426.8,3426.6,0.00229066]
[1762542257630,0.71396,3426.7,3426.6,0.00229066]
[1762542257931,0.2409,3426.7,3426.6,0.47537066]
[1762542258127,0.47303,3426.9,3426.8,0.47305]
[1762542258321,0.71396,3426.7,3426.6,0.00229066]
[1762542259119,0.2409,3426.7,3426.6,0.00229066]
[1762542259335,0.2452593,3427.0,3426.9,0.47303]
[1762542259724,0.2409,3426.7,3426.6,0.00229066]
[1762542260031,0.2409,3426.7,3426.6,0.47537066]
[1762542261127,0.71396,3426.7,3426.6,0.47537066]
[1762542261335,0.71396,3426.7,3426.6,0.00229066]
[1762542261535,0.714,3426.4,3426.3,0.00437495]
[1762542262428,0.2409,3425.7,3425.6,1.24722581]
[1762542262623,0.2409,3425.7,3425.6,0.47321]
[1762542262829,0.24432302,3425.7,3425.6,0.47554509]
[1762542263734,0.00342302,3425.7,3425.6,0.47554509]
[1762542265933,0.24432302,3425.7,3425.6,0.47554509]
[1762542267330,0.71752302,3425.7,3425.6,0.00233509]
[1762542267738,0.24432302,3425.7,3425.6,0.47554509]
[1762542269036,0.00342302,3425.7,3425.6,0.47554509]
[1762542269233,0.71752302,3425.7,3425.6,0.00233509]
[1762542269628,0.3789,3425.4,3425.3,0.47763495]
[1762542270046,0.85214,3425.4,3425.3,0.00437495]
[1762542270236,0.3789,3425.4,3425.3,0.47763495]
[1762542270542,0.85214,3425.4,3425.3,0.00437495]
[1762542270842,0.85214,3425.4,3425.3,0.4799162]
[1762542271340,0.85214,3425.4,3425.3,0.0066562]
[1762542271527,0.71416,3425.3,3425.2,0.47327]
[1762542272531,0.71416,3425.3,3425.2,0.47640173]
[1762542273128,0.71416,3425.3,3425.2,0.00313173]
[1762542273339,0.8522,3425.0,3424.9,0.00437495]
[1762542273538,0.3789,3425.0,3424.9,0.47768495]
[1762542273738,0.138,3425.0,3424.9,0.47768495]
[1762542274536,0.8522,3425.0,3424.9,0.00705346]
[1762542274737,0.138,3424.0,3423.9,1.24746581]
[1762542274935,0.138,3424.0,3423.9,0.47345]
[1762542275236,0.3789,3424.0,3423.5,0.77401581]
[1762542275444,0.47345,3423.9,3423.7,0.47347]
[1762542275644,0.47345,3423.9,3423.7,0.00310044]
[1762542275837,0.71436,3423.8,3423.7,0.00310044]
[1762542276342,0.71436,3423.8,3423.7,4.4e-07]
[1762542276938,0.71436,3423.8,3423.7,0.47348044]
[1762542277146,0.138,3424.0,3423.9,0.47345]
[1762542277343,0.2409,3423.9,3423.8,0.47346]
[1762542277538,0.2409,3423.8,3423.7,0.47348044]
[1762542278036,0.138,3424.0,3423.9,0.47345]
[1762542278436,0.3789,3424.0,3423.9,0.47345]
[1762542280141,0.138,3424.0,3423.9,0.47345]
[1762542280847,0.233,3423.9,3423.8,0.47346]
[1762542281146,0.138,3424.0,3423.9,0.47345]
[1762542281737,0.371,3424.0,3423.9,0.47345]
[1762542282045,0.138,3424.0,3423.9,0.47345]
[1762542283041,0.1376,3422.5,3422.4,1.0311701]
[1762542283239,0.233,3422.4,3422.3,0.47367]
[1762542283444,0.1376,3422.5,3422.4,0.47366]
[1762542283836,0.1376,3423.0,3422.9,0.47359]
[1762542284141,0.14134103,3423.0,3422.9,0.4767596]
[1762542284643,0.37434103,3423.0,3422.9,0.4767596]
[1762542285044,0.84791103,3423.0,3422.9,0.0031696]
[1762542285252,0.84791103,3423.0,3421.4,1.54264524]
[1762542285253,0.1376,3421.8,3420.9,1.0311701]
[1762542285738,0.1376,3421.8,3421.6,0.47376]
[1762542286247,0.1376,3421.8,3421.6,0.47653086]
[1762542286852,0.1376,3421.8,3421.6,0.00277086]
[1762542287149,0.3706,3421.8,3421.6,0.47654086]
[1762542287338,0.1376,3421.8,3421.6,0.47654086]
[1762542287945,0.233,3421.5,3421.4,0.00294104]
[1762542288146,0.1376,3421.8,3421.5,0.47378]
[1762542288343,0.233,3421.6,3421.5,0.47378]
[1762542288644,0.233,3421.5,3421.4,0.00294104]
[1762542289048,0.233,3421.5,3421.4,0.00617325]
[1762542289349,0.233,3421.1,3419.7,1.08203997]
[1762542289550,0.233,3421.0,3419.7,0.05086987]
[1762542289951,0.233,3421.0,3420.9,0.47386]
[1762542290148,0.233,3421.0,3419.4,1.0311701]
[1762542290451,0.233,3420.9,3420.8,0.47387]
[1762542291454,0.233,3420.9,3420.6,0.4739]
[1762542291848,0.233,3420.9,3419.8,0.23139667]
[1762542292049,0.233,3420.9,3420.8,0.47388]
[1762542292846,0.37498148,3421.2,3421.1,0.47384]
[1762542293155,0.14198148,3421.2,3421.1,0.47384]
[1762542295853,0.1376,3421.8,3421.1,0.47384]
[1762542296062,0.1376,3421.8,3421.7,0.47375]
[1762542301163,0.3926,3421.5,3421.4,0.00438148]
[1762542301762,0.86638,3421.5,3421.4,0.00438148]
[1762542301959,0.86638,3421.5,3421.3,0.4738]
[1762542301960,0.2496,3421.4,3421.3,0.4738]
[1762542302270,0.1376,3421.8,3421.7,0.47375]
[1762542302458,0.00438148,3422.1,3422.0,0.47371]
[1762542302864,0.72768148,3422.1,3420.6,1.4811701]
[1762542303162,0.2496,3421.6,3421.5,0.47377]
[1762542303367,0.72337,3421.6,3421.4,0.47379]
[1762542303560,0.2496,3421.5,3421.4,0.47379]
[1762542303957,0.2496,3421.0,3420.9,0.47386]
[1762542304365,0.143,3421.2,3419.7,1.03490983]
[1762542304366,0.2496,3420.9,3419.7,1.03490983]
[1762542304570,0.2496,3420.9,3419.7,0.00373973]
[1762542304770,0.2496,3420.8,3420.7,0.47388]
[1762542305172,0.3926,3421.2,3419.8,0.23623342]
[1762542305474,0.2496,3421.0,3419.7,1.03490983]
[1762542305671,0.2496,3420.9,3419.7,0.23176039]
[1762542305865,0.3926,3421.2,3421.1,0.47384]
[1762542306770,0.2496,3421.0,3420.9,0.47386]
[1762542308875,0.143,3421.2,3421.1,0.47384]
[1762542309373,0.00438148,3422.1,3422.0,0.47371]
[1762542310476,0.2496,3422.0,3420.9,1.0311701]
[1762542310668,0.2496,3422.0,3421.9,0.47373]
[1762542311168,0.00438148,3422.1,3422.0,0.47371]
[1762542311871,0.25398148,3422.1,3422.0,0.47371]
[1762542312072,0.25398148,3422.1,3421.2,1.0311701]
[1762542312272,0.25398148,3422.1,3421.1,1.0311701]
[1762542312273,0.143,3421.8,3421.1,1.0311701]
[1762542312476,0.143,3421.8,3421.7,0.47375]
[1762542313469,0.3926,3421.8,3421.7,0.47375]
[1762542313874,0.2496,3421.5,3421.4,0.47379]
[1762542314575,0.143,3421.8,3421.6,0.47376]
[1762542314576,0.2496,3421.7,3421.6,0.47376]
[1762542314776,0.2496,3421.6,3421.5,0.47378]
[1762542314977,0.143,3421.8,3421.7,0.47375]
[1762542315479,0.3926,3421.8,3421.2,1.0303701]
[1762542315779,0.3926,3421.8,3420.0,3.61603739]
[1762542315780,0.143,3421.2,3420.9,1.54264524]
[1762542316081,0.2496,3421.0,3420.6,1.54264524]
[1762542316276,0.2496,3421.0,3420.4,1.54264524]
[1762542316479,0.143,3420.6,3420.5,0.47392]
[1762542316667,0.14582316,3420.6,3420.5,0.47392]
[1762542318088,0.00282316,3420.6,3420.5,0.47392]
[1762542318590,0.14582316,3420.6,3420.5,0.47392]
[1762542318991,0.39542316,3420.6,3420.2,1.54264524]
[1762542319189,0.39542316,3420.6,3420.5,0.47392]
[1762542319696,0.86659,3420.0,3419.7,1.54638497]
[1762542319887,0.2496,3419.8,3419.7,0.00373973]
[1762542320382,0.143,3418.8,3418.7,0.47417]
[1762542320585,0.143,3418.8,3418.6,0.47418]
[1762542321395,0.143,3418.8,3418.6,0.47769388]
[1762542322294,0.143,3419.4,3419.3,0.47409]
[1762542323496,0.143,3420.0,3419.9,0.474]
[1762542323691,0.2496,3419.8,3419.7,0.47403]
[1762542324288,0.3926,3420.0,3419.9,0.474]
[1762542325498,0.3926,3420.0,3418.6,0.00351388]
[1762542325692,0.143,3419.4,3418.6,0.00351388]
[1762542325895,0.143,3418.8,3418.7,0.47417]
[1762542326297,0.143,3419.4,3419.3,0.47409]
[1762542327097,0.47412,3419.1,3418.6,0.00351388]
[1762542327300,0.1391,3418.8,3418.6,0.00351388]
[1762542327596,0.143,3419.4,3418.6,0.00351388]
[1762542327803,0.2411,3419.2,3419.1,0.47411]
[1762542328102,0.143,3419.4,3419.3,0.47409]
[1762542328302,0.3841,3419.4,3419.1,0.4741]
[1762542328597,0.1391,3418.8,3418.6,0.00351388]
[1762542328801,0.71527,3418.7,3418.6,0.00351388]
[1762542329205,0.1391,3418.2,3417.2,1.54264524]
[1762542329498,0.00438847,3418.0,3417.1,1.54264524]
[1762542329900,0.00438847,3418.0,3416.7,2.06630708]
[1762542329901,0.00438847,3418.0,3417.0,1.54264524]
[1762542330087,0.00699349,3418.0,3417.0,1.5457565]
[1762542330596,0.00699349,3418.0,3417.0,0.00311126]
[1762542331100,0.00699349,3418.0,3417.9,0.47428]
[1762542332595,0.1391,3418.8,3418.7,0.47417]
[1762542332997,0.1391,3418.8,3417.1,1.54264524]
[1762542333497,0.47418,3418.6,3418.4,0.47421]
[1762542333803,0.47421,3418.5,3418.2,0.00438847]
[1762542334001,0.2411,3418.3,3418.2,0.00438847]
[1762542334303,0.71533,3418.3,3418.2,0.00438847]
[1762542334997,0.00268968,3418.6,3417.0,0.00311126]
[1762542334998,0.61343,3417.6,3417.0,0.00311126]
[1762542335301,0.61343,3417.6,3417.1,0.47439]
[1762542335302,0.47435,3417.4,3417.1,0.47439]
[1762542335499,0.2411,3417.4,3417.3,0.47436]
[1762542335691,0.2411,3417.4,3417.0,0.00311126]
[1762542335896,0.2411,3417.3,3417.0,0.00311126]
[1762542336095,0.2411,3417.3,3417.2,0.47438]
[1762542336306,0.3802,3417.6,3417.5,0.47434]
[1762542336503,0.1391,3417.6,3417.5,0.47434]
[1762542338399,0.1391,3418.2,3418.1,0.47425]
[1762542338599,0.00268968,3418.6,3418.5,0.4742]
[1762542338800,0.00268968,3418.6,3417.0,0.00311126]
[1762542339003,0.3802,3418.2,3417.0,0.00311126]
[1762542339298,0.3802,3418.2,3418.1,0.47425]
[1762542339505,0.1391,3418.2,3418.1,0.47425]
[1762542339705,0.61334,3418.2,3417.0,0.00311126]
[1762542339904,0.1391,3418.2,3418.0,0.47426]
[1762542340103,0.1391,3418.2,3417.0,0.00311126]
[1762542340701,0.1491,3417.6,3417.3,0.47436]
[1762542341009,0.1491,3417.6,3417.3,0.47435]
[1762542341303,0.1491,3417.6,3417.5,0.47434]
[1762542342099,0.62342,3417.6,3417.3,0.47435]
[1762542342299,0.1491,3417.6,3417.0,0.00311126]
[1762542342597,0.1491,3417.6,3417.5,0.47434]
[1762542342903,0.62342,3417.6,3417.3,0.47436]
[1762542343105,0.62342,3417.6,3417.4,0.47435]
[1762542343293,0.1491,3417.6,3417.2,0.47438]
[1762542343495,0.1491,3417.6,3417.5,0.47434]
[1762542343907,0.1391,3418.2,3417.0,0.00311126]
[1762542344099,0.61335,3418.2,3417.0,0.00311126]
[1762542344403,0.1391,3418.2,3417.0,0.00311126]
[1762542344902,0.1391,3418.2,3418.1,0.47425]
[1762542345101,0.47688968,3418.6,3418.5,0.4742]
[1762542345102,0.00268968,3418.6,3418.5,0.4742]
[1762542345406,0.00268968,3418.6,3418.4,0.47421]
[1762542345802,0.24008968,3418.6,3418.5,0.4742]
[1762542348499,0.24008968,3418.6,3417.6,1.04284415]
[1762542348703,0.2374,3418.4,3417.5,1.04284415]
[1762542349008,0.1491,3418.2,3418.1,0.47424]
[1762542349208,0.1491,3418.2,3417.2,1.54264524]
[1762542349209,0.00268968,3418.6,3418.5,0.4742]
[1762542349700,0.71426968,3418.6,3418.5,0.4742]
[1762542350309,0.1491,3418.2,3417.6,1.04284415]
[1762542350497,0.1491,3418.2,3418.1,0.47425]
[1762542350903,0.3865,3418.2,3418.1,0.47425]
[1762542351699,0.2374,3418.1,3417.4,1.04284415]
[1762542352108,0.2374,3418.1,3418.0,0.47427]
[1762542352503,0.00268968,3418.6,3418.5,0.4742]
[1762542353809,0.00268968,3418.6,3418.5,0.490656]
[1762542354208,0.00268968,3418.6,3418.5,0.507112]
[1762542354611,0.00268968,3418.6,3418.5,0.51427406]
[1762542359907,0.00438847,3418.8,3418.5,0.51427406]
[1762542360114,0.00438847,3418.8,3418.7,1.52119462]
[1762542360411,0.2249,3418.6,3418.5,1.04702462]
[1762542360618,0.1399,3418.5,3418.1,1.04702462]
[1762542360808,0.00438847,3418.8,3418.7,0.0009]
[1762542361009,0.00796665,3418.8,3418.7,0.47507]
[1762542361721,0.00796665,3418.8,3418.7,0.49340292]
[1762542362713,0.23286665,3418.8,3418.7,0.01833292]
[1762542364420,0.2249,3418.3,3418.2,0.47424]
[1762542364618,0.23286665,3418.8,3418.7,0.47417]
[1762542365523,0.00796665,3418.8,3418.7,0.47417]
[1762542365720,1.04461004,3419.9,3419.6,0.0192]
[1762542365926,10.0,3420.0,3419.9,0.49321]
[1762542366421,0.9281366,3420.0,3419.9,15.88385524]
[1762542366624,0.1399,3421.0,3420.8,0.47388]
[1762542366920,0.14206067,3421.0,3420.8,0.47757622]
[1762542367511,0.14206067,3421.0,3420.9,0.01405601]
[1762542367921,0.14206067,3421.0,3420.9,0.0280791]
[1762542368115,0.14206067,3421.0,3420.9,0.80950215]
[1762542368317,0.14206067,3421.0,3420.9,0.04010698]
[1762542369924,0.00216067,3421.0,3420.9,0.04010698]
[1762542370113,0.00438847,3421.2,3420.9,0.04010698]
[1762542370114,0.00438847,3421.2,3421.0,0.47385]
[1762542370311,0.00438847,3421.2,3421.1,0.04010698]
[1762542370725,0.1399,3422.0,3421.9,0.47373]
[1762542371025,0.14198215,3422.0,3421.9,0.47373]
[1762542371423,0.14198215,3422.0,3421.9,0.51383698]
[1762542372113,0.14198215,3422.0,3421.9,0.04010698]
[1762542372726,0.36688215,3422.0,3421.9,0.04010698]
[1762542374215,0.36688215,3422.0,3421.9,0.04609763]
[1762542374414,0.36688215,3422.0,3421.9,0.05208828]
[1762542374617,0.14198215,3422.0,3421.9,0.05208828]
[1762542374817,0.36688215,3422.0,3421.9,0.05208828]
[1762542375027,0.84060215,3422.0,3421.5,0.47377]
[1762542375229,0.84060215,3422.0,3421.9,0.05807893]
[1762542375426,0.36688215,3422.0,3421.9,0.06406958]
[1762542375831,0.39836477,3421.9,3421.5,0.47378]
[1762542376231,0.14198215,3422.0,3420.8,0.00369622]
[1762542376232,0.47375,3421.8,3420.8,0.00369622]
[1762542376532,0.1399,3421.2,3421.1,0.47384]
[1762542377324,0.1399,3421.2,3421.0,0.47385]
[1762542377525,0.2249,3421.1,3421.0,0.47384]
[1762542377930,0.1399,3421.2,3421.0,0.47384]
[1762542379033,0.2249,3421.1,3421.0,0.47384]
[1762542379229,0.2249,3420.9,3420.8,0.47756622]
[1762542379933,0.3648,3421.2,3421.1,0.47384]
[1762542380134,0.1399,3421.2,3421.1,0.47384]
[1762542381833,0.14198215,3422.0,3421.9,0.47373]
[1762542382036,0.14198215,3422.0,3421.1,0.01712239]
[1762542382230,0.1399,3421.2,3421.1,0.49096239]
[1762542382531,0.1399,3421.2,3421.1,0.50326897]
[1762542382735,0.1399,3421.2,3421.1,0.51557555]
[1762542383144,0.1399,3421.2,3421.1,0.47384]
[1762542383434,0.1399,3421.2,3421.1,0.51872987]
[1762542385138,0.3648,3421.2,3421.1,0.51872987]
[1762542385331,0.83863,3421.2,3421.1,0.04488987]
[1762542385536,0.69877,3420.9,3420.8,0.00369622]
[1762542385843,0.2249,3420.9,3420.8,0.00369622]
[1762542386139,0.69877,3420.9,3420.8,0.00369622]
[1762542386538,0.2249,3420.9,3420.8,0.47757622]
[1762542387445,0.1399,3421.2,3421.0,0.47385]
[1762542387737,0.2368,3421.1,3421.0,0.47385]
[1762542388242,0.2368,3420.9,3420.8,0.47757622]
[1762542388735,0.1399,3421.2,3421.1,0.47384]
[1762542388937,0.3767,3421.2,3421.1,0.47384]
[1762542389138,0.3767,3421.2,3421.1,0.50700042]
[1762542389442,0.85053,3421.2,3421.1,0.50700042]
[1762542389637,0.85053,3421.2,3421.1,0.51391406]
[1762542389836,0.3767,3421.2,3421.1,0.51391406]
[1762542391442,0.1399,3421.2,3421.1,0.51391406]
[1762542391843,0.3767,3421.2,3421.1,0.51391406]
[1762542392247,0.85053,3421.2,3421.1,0.04007406]
[1762542392544,0.71066,3421.1,3421.0,0.47385]
[1762542393240,0.71067,3420.9,3420.8,0.47755622]
[1762542393439,0.2368,3420.9,3420.8,0.47755622]
[1762542395342,0.1399,3421.2,3420.8,0.00369622]
[1762542395544,0.85053,3421.2,3421.1,0.47384]
[1762542395837,0.3767,3421.2,3421.1,0.47384]
[1762542396042,0.1399,3421.2,3421.1,0.47384]
[1762542396237,0.1399,3421.2,3421.1,0.49472831]
[1762542396637,0.1399,3421.2,3421.1,0.50955584]
[1762542396937,0.3767,3421.2,3421.1,0.50955584]
[1762542397137,0.1399,3421.2,3421.1,0.51391406]
[1762542397541,0.1399,3421.5,3421.4,0.4738]
[1762542398141,0.1399,3421.5,3421.4,0.51387406]
[1762542398437,0.00438847,3422.3,3421.9,0.47373]
[1762542398637,0.00438847,3422.3,3421.9,1.51438574]
[1762542398836,0.00438847,3422.3,3421.9,0.47373]
[1762542399239,0.00438847,3422.3,3421.9,0.51380406]
[1762542400347,0.00438847,3422.3,3421.9,1.29344559]
[1762542401345,0.00438847,3422.3,3421.9,0.04007406]
[1762542401745,0.37878215,3422.0,3421.9,0.51380406]
[1762542401944,0.14198215,3422.0,3421.9,0.51380406]
[1762542402142,0.14198215,3422.0,3421.9,1.29344559]